bitfinex-derivatives/quotes_ETHF0:USTF0_20250917
["timestamp","ask_amount","ask_price","bid_price","bid_amount"]
[1758079693850,0.7176,4522.1,4522.0,1.62329816]
[1758079694153,0.223,4522.1,4522.0,1.32709816]
[1758079694652,0.4245,4522.1,4522.0,1.62329816]
[1758079694855,0.7301,4522.1,4522.0,1.62329816]
[1758079695954,0.2015,4522.1,4522.0,1.62329816]
[1758079696257,3.7149,4523.1,4523.0,0.8413]
[1758079696554,3.9379,4523.1,4523.0,1.62329816]
[1758079696751,44.9484,4523.1,4523.0,1.62329816]
[1758079697150,3.9254,4523.1,4523.0,1.62329816]
[1758079697357,3.9379,4523.1,4523.0,1.62329816]
[1758079697952,4.1484,4523.1,4523.0,1.62329816]
[1758079698760,3.9254,4523.1,4523.0,1.62329816]
[1758079699057,3.9254,4523.1,4523.0,0.8413]
[1758079699058,4.1484,4523.1,4523.0,0.8413]
[1758079699254,4.1484,4523.1,4522.3,3.2078]
[1758079699459,0.7176,4521.9,4521.8,3.6486]
[1758079699653,0.9406,4521.9,4521.8,0.4408]
[1758079699851,0.9406,4521.9,4521.8,0.4187]
[1758079700052,0.9406,4521.9,4521.8,0.7149]
[1758079700952,0.9406,4521.9,4521.8,0.2101]
[1758079701361,0.412,4521.6,4521.5,0.99209816]
[1758079701552,0.9406,4521.6,4521.5,1.28829816]
[1758079701751,0.635,4521.6,4521.2,3.504]
[1758079701953,0.635,4521.6,4520.5,3.3342]
[1758079701954,0.3056,4521.2,4520.5,3.3342]
[1758079702151,0.7176,4521.2,4521.1,0.5063]
[1758079703155,3.2078,4521.5,4521.1,0.7149]
[1758079703357,3.4093,4521.5,4521.4,1.49689816]
[1758079703556,4.1484,4521.5,4521.4,1.49689816]
[1758079703862,4.2751,4521.5,4521.4,0.7149]
[1758079704050,4.1484,4521.5,4521.4,1.49689816]
[1758079704952,3.9379,4521.5,4521.4,1.49689816]
[1758079705358,4.1484,4521.5,4521.4,0.7149]
[1758079705560,4.2751,4521.5,4521.4,1.49689816]
[1758079705760,4.1484,4521.5,4521.4,1.49689816]
[1758079706157,3.9254,4521.5,4521.4,1.49689816]
[1758079706360,3.2078,4521.5,4521.4,1.49689816]
[1758079706562,0.7176,4521.9,4521.8,0.7149]
[1758079706864,0.9406,4521.9,4521.8,1.28829816]
[1758079707259,0.223,4521.9,4521.4,0.78199816]
[1758079707565,0.7176,4521.5,4521.4,1.49689816]
[1758079707861,0.9406,4521.5,4521.4,1.49689816]
[1758079708856,0.196,4522.0,4521.9,0.4013]
[1758079709165,0.7254,4522.0,4521.9,1.47439816]
[1758079709557,0.9403,4522.0,4521.9,1.47439816]
[1758079710660,1.0613,4522.0,4521.0,3.3342]
[1758079710877,0.7173,4521.6,4521.5,1.26949816]
[1758079711159,0.9403,4521.6,4521.5,0.1964]
[1758079711365,0.9403,4521.6,4521.2,1.07309816]
[1758079711664,0.3064,4521.2,4521.1,0.2911]
[1758079711870,0.9403,4521.2,4521.1,0.6924]
[1758079713466,0.9403,4521.2,4521.1,1.47439816]
[1758079714264,0.9403,4521.2,4521.1,0.1964]
[1758079714458,0.7173,4521.2,4520.9,0.3132]
[1758079714655,0.9403,4521.1,4521.0,0.97839816]
[1758079714853,0.9403,4521.1,4521.0,1.26949816]
[1758079715568,0.9403,4521.1,4521.0,1.59079816]
[1758079715764,0.9403,4521.1,4521.0,0.8088]
[1758079715963,0.9403,4521.1,4521.0,1.59079816]
[1758079716663,0.9403,4521.1,4521.0,0.78199816]
[1758079716861,38.59269074,4521.1,4520.0,0.4075]
[1758079717068,3.2078,4520.1,4520.0,0.4075]
[1758079717261,3.4308,4520.1,4520.0,0.4075]
[1758079717462,3.2078,4520.1,4520.0,0.8088]
[1758079717757,4.21279816,4520.1,4520.0,0.4075]
[1758079717963,3.4308,4520.1,4520.0,0.4075]
[1758079719668,3.4308,4520.1,4520.0,0.6039]
[1758079720663,3.98979816,4520.6,4520.0,0.8088]
[1758079720866,3.2078,4520.6,4520.5,0.1164]
[1758079721065,3.4308,4520.6,4520.5,0.4075]
[1758079721266,3.4308,4520.6,4520.5,0.6039]
[1758079722065,3.4308,4520.6,4520.5,0.1164]
[1758079722264,3.4308,4520.6,4520.0,0.1164]
[1758079722463,3.4308,4520.6,4520.1,0.2911]
[1758079722464,0.78199816,4520.2,4520.1,0.2911]
[1758079722668,4.21279816,4520.2,4520.1,0.2911]
[1758079722966,3.98979816,4520.2,4520.1,0.2911]
[1758079723165,4.21279816,4520.2,4520.1,0.2911]
[1758079723365,4.21279816,4520.2,4520.1,0.4875]
[1758079723565,4.21279816,4520.2,4520.1,0.6924]
[1758079723868,3.2078,4520.7,4520.6,0.6924]
[1758079724166,3.4308,4520.7,4520.6,0.6924]
[1758079724767,3.2078,4520.7,4520.6,0.6924]
[1758079725073,3.4308,4520.7,4520.6,0.6924]
[1758079726570,3.4308,4520.7,4520.6,0.2911]
[1758079726772,3.4308,4520.7,4520.6,0.4875]
[1758079727068,3.4308,4520.7,4520.0,1.05588259]
[1758079727273,3.4308,4520.7,4520.5,0.1164]
[1758079727473,3.4308,4520.7,4520.6,0.2911]
[1758079728076,3.2078,4520.7,4520.6,0.2911]
[1758079728277,3.4318,4520.7,4520.6,0.2911]
[1758079728577,3.4318,4520.7,4520.6,0.6924]
[1758079728877,3.4318,4520.7,4520.6,0.4875]
[1758079730478,3.4318,4520.7,4520.6,0.6924]
[1758079732273,3.4318,4520.7,4520.6,0.4875]
[1758079732978,3.4318,4520.7,4520.6,0.2911]
[1758079733983,3.4318,4520.7,4520.6,0.4875]
[1758079734179,3.2078,4520.7,4520.6,0.6924]
[1758079734381,3.4318,4520.7,4520.6,0.6924]
[1758079734572,0.224,4520.7,4520.6,0.6924]
[1758079735279,3.4318,4520.7,4520.6,0.6924]
[1758079735981,4.91349292,4520.7,4520.1,0.3037]
[1758079736285,3.2078,4520.2,4520.1,0.3037]
[1758079736477,3.4318,4520.2,4520.1,0.3037]
[1758079738480,3.4318,4520.2,4519.6,0.3125]
[1758079738683,3.4318,4520.2,4519.2,3.2299]
[1758079738984,3.4318,4520.2,4519.7,0.3125]
[1758079739186,3.4318,4520.2,4519.7,0.2022]
[1758079739383,3.4318,4520.2,4519.8,0.2022]
[1758079739687,3.4318,4520.2,4520.1,0.3125]
[1758079742896,3.4318,4520.2,4520.1,0.7221]
[1758079743094,3.4318,4520.2,4520.1,0.3125]
[1758079744596,3.2078,4520.2,4520.1,0.3125]
[1758079744792,3.4318,4520.2,4520.1,0.3125]
[1758079746299,3.97392635,4520.2,4520.1,0.3125]
[1758079746798,44.54992635,4520.2,4520.1,0.7221]
[1758079747001,44.77392635,4520.2,4520.1,0.7221]
[1758079749495,44.54992635,4520.2,4520.1,0.7221]
[1758079749702,44.2318,4520.2,4520.1,0.7221]
[1758079751400,44.0078,4520.2,4520.1,0.7221]
[1758079751694,3.2078,4520.7,4520.6,0.5147]
[1758079751899,3.97401676,4520.7,4520.6,0.5147]
[1758079752097,44.55001676,4520.7,4520.6,0.5147]
[1758079752303,3.97401676,4520.7,4520.6,0.7221]
[1758079752504,3.4318,4520.7,4520.6,0.7221]
[1758079753704,0.224,4520.7,4520.6,0.7221]
[1758079756006,44.0078,4521.2,4521.0,0.8402]
[1758079756207,3.2078,4521.2,4521.0,0.8402]
[1758079756400,32.076,4521.1,4521.0,0.8402]
[1758079757398,31.852,4521.1,4521.0,0.8402]
[1758079757604,32.076,4521.1,4521.0,0.8402]
[1758079759404,3.2078,4521.2,4521.0,0.8402]
[1758079759606,0.224,4521.1,4521.0,0.8402]
[1758079760403,3.2078,4521.2,4521.0,0.5277]
[1758079760608,3.2078,4521.7,4521.6,0.7221]
[1758079760810,3.4308,4521.7,4521.6,0.7221]
[1758079761601,0.224,4521.7,4521.6,0.7221]
[1758079762302,0.224,4521.7,4521.6,0.3125]
[1758079763410,0.224,4521.7,4521.6,0.5147]
[1758079765501,3.2078,4521.8,4521.6,0.4096]
[1758079765702,3.2078,4521.8,4521.7,0.3125]
[1758079765902,3.4318,4521.8,4521.7,0.5147]
[1758079767207,3.4318,4521.8,4521.7,0.7221]
[1758079768506,3.4308,4521.8,4521.7,0.7221]
[1758079768709,3.2078,4521.8,4521.7,0.7221]
[1758079768909,3.4308,4521.8,4521.7,0.7221]
[1758079769712,3.2078,4521.8,4521.7,0.7221]
[1758079770006,3.4308,4521.8,4521.7,0.7221]
[1758079774709,3.4308,4521.8,4521.7,0.3125]
[1758079778115,3.4308,4521.8,4521.7,0.724]
[1758079778410,0.223,4521.8,4521.7,0.724]
[1758079781818,0.93948259,4522.1,4521.7,0.4115]
[1758079782017,0.223,4521.8,4521.7,0.4115]
[1758079782522,3.4308,4521.8,4521.7,0.489]
[1758079783020,0.223,4522.2,4522.1,0.4115]
[1758079783323,0.223,4522.2,4522.1,0.7037]
[1758079783621,0.223,4522.2,4522.1,0.4115]
[1758079784018,0.223,4522.2,4522.1,0.7037]
[1758079786120,3.2078,4522.4,4522.1,0.7037]
[1758079786326,0.76440288,4522.3,4522.2,0.2922]
[1758079786520,0.76440288,4522.3,4522.2,0.7037]
[1758079786721,0.54140288,4522.3,4522.2,0.7037]
[1758079786921,0.76440288,4522.3,4522.2,0.7037]
[1758079788628,3.97220288,4522.3,4522.2,0.7037]
[1758079789819,3.74920288,4522.3,4522.2,0.7037]
[1758079790020,3.97220288,4522.3,4522.2,0.7037]
[1758079793127,3.97220288,4522.3,4522.2,0.2922]
[1758079793424,3.97220288,4522.3,4521.6,0.2922]
[1758079793725,0.78256232,4521.9,4521.8,0.489]
[1758079793925,1.00556232,4521.9,4521.8,0.489]
[1758079794828,0.223,4521.9,4521.8,0.7037]
[1758079795029,0.78256232,4522.2,4522.1,0.6908]
[1758079795225,0.76509121,4522.2,4522.1,0.6908]
[1758079795618,1.54765353,4522.2,4522.1,0.2944]
[1758079799532,1.54765353,4522.2,4522.1,0.4969]
[1758079799836,0.76509121,4522.2,4522.1,0.7079]
[1758079800540,0.54209121,4522.2,4522.1,0.7079]
[1758079800833,0.76509121,4522.2,4522.1,0.7079]
[1758079802736,0.76509121,4522.2,4522.1,0.2944]
[1758079804841,0.76509121,4522.2,4522.1,0.4969]
[1758079805138,0.76509121,4522.2,4522.1,0.7079]
[1758079805529,3.2078,4522.3,4522.2,0.2977]
[1758079805731,3.97287166,4522.3,4522.2,1.49376232]
[1758079806238,3.4308,4522.3,4522.2,0.7112]
[1758079807746,3.2078,4522.3,4522.2,0.7112]
[1758079808039,3.4308,4522.3,4522.2,0.7112]
[1758079808740,3.2078,4522.3,4522.2,0.7112]
[1758079808941,3.4308,4522.3,4522.2,0.7112]
[1758079814346,3.2078,4522.3,4522.2,0.7112]
[1758079814538,3.4308,4522.3,4522.2,0.7112]
[1758079816139,3.2078,4522.3,4522.2,0.7112]
[1758079816540,3.4308,4522.3,4522.2,0.7112]
[1758079818946,31.853,4523.3,4523.0,0.1192]
[1758079819251,31.853,4523.3,4523.2,0.2977]
[1758079819445,0.223,4523.3,4523.1,0.2977]
[1758079819651,0.223,4523.3,4523.2,0.2977]
[1758079820040,0.223,4523.3,4523.0,0.2977]
[1758079820240,0.78256232,4523.1,4522.6,0.2977]
[1758079820441,3.2078,4522.9,4522.6,0.2977]
[1758079820641,0.223,4522.8,4522.6,0.2025]
[1758079820847,0.223,4522.8,4522.7,0.2977]
[1758079821540,0.223,4522.8,4522.7,0.5002]
[1758079822959,0.223,4522.8,4522.7,1.49376232]
[1758079823443,3.2078,4522.9,4522.7,1.19606232]
[1758079823649,3.2078,4522.9,4522.8,0.7112]
[1758079823845,3.4308,4522.9,4522.8,0.7112]
[1758079825150,3.2078,4522.9,4522.8,0.7112]
[1758079826355,3.2078,4522.9,4522.8,1.49376232]
[1758079832257,3.2078,4522.9,4522.8,0.7112]
[1758079832658,3.2078,4522.9,4522.8,0.2977]
[1758079834462,3.2078,4522.9,4522.5,0.1192]
[1758079834668,0.223,4522.8,4522.6,0.2958]
[1758079835760,0.78256232,4522.7,4522.6,0.2958]
[1758079836858,0.78256232,4522.7,4521.7,3.2078]
[1758079837059,3.99036232,4522.4,4521.7,3.2078]
[1758079837257,0.223,4522.3,4521.7,3.2078]
[1758079838059,0.223,4522.3,4522.1,0.2958]
[1758079838254,0.223,4522.3,4522.0,0.0221]
[1758079838555,0.78256232,4522.1,4522.0,0.3179]
[1758079838755,1.00556232,4522.1,4522.0,0.3179]
[1758079838954,1.00556232,4522.1,4522.0,0.2958]
[1758079839363,1.00556232,4522.1,4522.0,0.4201]
[1758079845767,0.223,4522.1,4522.0,0.4201]
[1758079846765,0.223,4522.1,4522.0,0.6209]
[1758079850575,0.223,4522.1,4522.0,0.4201]
[1758079850968,0.223,4522.1,4521.8,0.0221]
[1758079851270,0.93916282,4521.9,4521.8,0.3179]
[1758079851574,0.93916282,4521.9,4521.8,0.2958]
[1758079852073,4.14696282,4521.9,4521.8,0.2958]
[1758079853671,4.14696282,4521.9,4520.5,3.5551]
[1758079853672,8.90992119,4521.9,4520.5,3.3321]
[1758079853868,3.2078,4521.1,4521.0,0.415]
[1758079854069,3.4308,4521.1,4521.0,0.415]
[1758079855474,3.97216584,4521.1,4520.8,0.0221]
[1758079855671,0.54136584,4521.0,4520.9,0.2941]
[1758079856171,3.4308,4521.1,4520.8,0.0221]
[1758079856474,0.93916282,4521.0,4520.9,0.2941]
[1758079856977,1.48030327,4521.0,4520.9,0.2941]
[1758079857273,1.48030327,4521.0,4520.8,0.0221]
[1758079857474,0.76414045,4520.9,4520.8,0.0221]
[1758079857776,0.76414045,4520.9,4520.8,0.2941]
[1758079857973,0.76414045,4520.9,4520.5,0.1243]
[1758079858173,0.54114045,4520.8,4520.6,0.2941]
[1758079858480,40.8,4521.2,4520.6,0.2941]
[1758079858481,3.4308,4520.7,4520.6,0.2941]
[1758079860782,3.4308,4520.7,4520.6,0.5089]
[1758079861579,3.4308,4520.7,4520.6,0.2941]
[1758079863181,3.2078,4520.7,4520.6,0.7132]
[1758079863382,3.4308,4520.7,4520.6,0.7132]
[1758079864684,3.2078,4520.7,4520.6,0.7132]
[1758079864889,3.4308,4520.7,4520.6,0.7132]
[1758079867581,3.4308,4520.7,4520.6,0.5003]
[1758079867786,3.4308,4520.7,4520.6,0.2941]
[1758079868089,3.4308,4520.7,4520.6,0.5003]
[1758079868790,3.4308,4520.7,4520.6,0.2941]
[1758079869994,3.4308,4520.7,4520.6,0.5003]
[1758079872390,3.4308,4520.7,4520.4,0.0221]
[1758079872590,1.48007478,4520.6,4519.8,0.3055]
[1758079872794,3.2078,4519.9,4519.8,0.3055]
[1758079872995,3.4308,4519.9,4519.8,0.3055]
[1758079873295,3.4308,4519.9,4519.8,0.5117]
[1758079873791,3.4308,4519.9,4519.0,3.3313]
[1758079874094,3.2078,4519.4,4518.5,0.4296]
[1758079874285,3.2078,4518.6,4518.5,0.6358]
[1758079874485,3.4308,4518.6,4518.5,0.6358]
[1758079874692,3.4308,4518.6,4518.5,0.4296]
[1758079875193,3.2078,4518.6,4518.5,0.8487]
[1758079875389,0.223,4518.6,4518.5,0.8487]
[1758079879198,0.223,4518.7,4518.6,0.7246]
[1758079885408,0.223,4518.7,4518.6,0.3055]
[1758079885903,1.7026508,4518.7,4518.6,0.3055]
[1758079886205,1.70256806,4518.7,4518.6,0.3055]
[1758079886503,0.54040524,4518.7,4518.6,0.3055]
[1758079886703,0.76340524,4518.7,4518.6,0.5117]
[1758079889105,0.223,4518.7,4518.6,0.5117]
[1758079889403,0.53994237,4518.7,4518.6,0.7246]
[1758079889607,0.223,4518.7,4518.6,0.7246]
[1758079890309,0.223,4518.7,4518.6,0.5117]
[1758079890504,0.76289816,4518.7,4518.6,0.5117]
[1758079890907,0.223,4518.7,4518.6,0.5117]
[1758079891300,0.223,4518.7,4518.6,0.3055]
[1758079892510,0.223,4518.7,4518.6,0.5075]
[1758079893512,0.223,4518.7,4518.6,0.7112]
[1758079894309,3.2078,4518.8,4518.7,0.3093]
[1758079894511,3.97050852,4518.8,4518.7,0.715]
[1758079895213,3.4308,4518.8,4518.7,0.715]
[1758079895408,3.2078,4518.8,4518.7,0.715]
[1758079895609,3.4308,4518.8,4518.7,0.715]
[1758079897916,0.224,4518.8,4518.7,0.715]
[1758079903014,3.2078,4519.3,4519.2,0.715]
[1758079903317,3.97988789,4519.3,4519.2,0.715]
[1758079904320,3.75688789,4519.3,4519.2,0.715]
[1758079904518,3.97988789,4519.3,4519.2,0.715]
[1758079905206,3.75688789,4519.3,4519.2,0.715]
[1758079905408,3.97988789,4519.3,4519.2,0.715]
[1758079905712,3.75688789,4519.3,4519.2,0.715]
[1758079906219,3.97988789,4519.3,4519.2,0.715]
[1758079909521,3.75688789,4519.3,4519.2,0.715]
[1758079909723,3.97988789,4519.3,4519.2,0.715]
[1758079910723,3.75688789,4519.3,4519.2,0.715]
[1758079911022,3.97988789,4519.3,4519.2,0.715]
[1758079911222,3.2078,4519.3,4519.2,0.715]
[1758079911419,3.4308,4519.3,4519.2,0.715]
[1758079912425,1.78258945,4519.7,4519.5,0.1281]
[1758079912619,0.77213279,4519.6,4519.5,0.8431]
[1758079914226,0.54913279,4519.6,4519.5,0.8431]
[1758079914525,0.77213279,4519.6,4519.5,0.8431]
[1758079915220,3.2078,4519.8,4519.6,0.3191]
[1758079915419,0.77186782,4519.7,4519.6,0.7223]
[1758079917023,3.2078,4519.8,4519.6,1.50589721]
[1758079917224,0.223,4519.7,4519.6,1.50589721]
[1758079918722,1.76218785,4520.3,4520.2,0.3969]
[1758079918924,0.54883414,4520.3,4520.2,1.47509721]
[1758079919122,0.223,4520.3,4520.2,1.47509721]
[1758079919527,0.223,4520.3,4520.2,0.6915]
[1758079921530,0.223,4520.3,4520.2,0.2946]
[1758079921824,0.223,4520.3,4520.1,0.197]
[1758079922027,0.223,4520.3,4520.2,0.2946]
[1758079922224,0.223,4520.3,4520.2,0.6915]
[1758079922619,3.2078,4520.9,4520.8,0.3969]
[1758079922931,3.4318,4520.9,4520.8,0.6915]
[1758079923130,3.4318,4520.9,4520.8,0.2946]
[1758079923330,3.4318,4520.9,4520.5,0.1205]
[1758079923526,0.78359721,4520.6,4520.1,0.2946]
[1758079923727,0.78359721,4520.2,4520.1,0.2946]
[1758079924032,1.00759721,4520.2,4520.1,0.4916]
[1758079924825,0.224,4520.2,4520.1,0.6915]
[1758079925025,3.2078,4520.4,4520.3,0.6915]
[1758079925532,3.4318,4520.4,4520.3,0.6915]
[1758079925733,40.8,4521.0,4520.5,0.1205]
[1758079925734,3.2078,4520.9,4520.5,0.1205]
[1758079925930,3.2078,4520.9,4520.7,0.3969]
[1758079926126,3.2078,4520.9,4520.8,0.6915]
[1758079926430,3.4318,4520.9,4520.8,0.6915]
[1758079929928,3.4318,4520.9,4520.8,0.4916]
[1758079930627,3.4318,4520.9,4520.8,0.2946]
[1758079931526,3.4318,4520.9,4520.5,0.1205]
[1758079931527,3.97905358,4520.9,4520.5,0.4151]
[1758079931836,0.78359721,4520.6,4520.5,0.4151]
[1758079932031,1.00759721,4520.6,4520.5,0.4151]
[1758079932234,1.00759721,4520.6,4520.5,0.2946]
[1758079932736,1.00759721,4520.6,4520.5,0.4151]
[1758079933038,1.00759721,4520.6,4520.5,0.6121]
[1758079933230,3.2078,4520.9,4520.5,1.30099721]
[1758079933434,3.2078,4520.9,4520.8,1.47509721]
[1758079933636,3.4318,4520.9,4520.8,1.47509721]
[1758079933837,3.2078,4520.9,4520.8,1.47509721]
[1758079934137,3.4318,4520.9,4520.8,1.47509721]
[1758079936640,3.4318,4520.9,4520.8,0.2946]
[1758079936937,3.4318,4520.9,4520.8,0.4916]
[1758079937730,3.4318,4520.9,4520.8,0.6915]
[1758079938729,0.78359721,4521.1,4520.8,0.6915]
[1758079938929,0.224,4520.9,4520.8,0.6915]
[1758079941444,0.78359721,4521.1,4521.0,0.812]
[1758079941744,1.5547049,4521.1,4521.0,0.812]
[1758079941944,0.77110769,4521.1,4521.0,0.812]
[1758079942135,0.77120412,4521.1,4521.0,0.812]
[1758079942645,75.8808,4521.4,4521.0,0.812]
[1758079942941,0.224,4521.3,4521.2,1.47509721]
[1758079943142,0.77119144,4521.3,4521.2,1.47509721]
[1758079943738,0.77119144,4521.3,4521.2,0.6915]
[1758079944143,0.54719144,4521.3,4521.2,0.6915]
[1758079944646,0.77119144,4521.3,4521.2,0.6915]
[1758079946040,0.54719144,4521.3,4521.2,0.6915]
[1758079946245,0.77119144,4521.3,4521.2,0.6915]
[1758079947438,0.77119144,4521.3,4521.0,0.1205]
[1758079947645,0.78359721,4521.1,4521.0,0.4151]
[1758079947946,1.55478865,4521.1,4521.0,0.4151]
[1758079948444,1.55478865,4521.1,4520.5,0.1205]
[1758079948645,1.00759721,4521.1,4520.6,0.2935]
[1758079948839,1.00759721,4521.1,4521.0,0.1261]
[1758079949043,1.55532421,4521.1,4521.0,0.4196]
[1758079949342,1.55532421,4521.1,4521.0,0.6322]
[1758079950447,1.55532421,4521.1,4521.0,0.4196]
[1758079950648,1.55532421,4521.1,4521.0,0.2935]
[1758079950836,1.55532421,4521.1,4520.6,0.2935]
[1758079951042,0.78359721,4520.8,4520.5,0.3331]
[1758079951243,0.224,4520.7,4520.6,0.2935]
[1758079951748,0.224,4520.7,4520.6,0.5061]
[1758079951953,0.224,4520.7,4520.6,0.7126]
[1758079952340,0.224,4520.7,4520.6,0.5061]
[1758079953549,0.77187575,4520.7,4520.6,0.5061]
[1758079953947,0.77187575,4520.7,4520.4,0.0221]
[1758079953948,0.99308575,4520.7,4520.4,0.0221]
[1758079954153,0.78359721,4520.5,4520.4,0.0221]
[1758079954450,1.55547296,4520.5,4519.9,0.2935]
[1758079954644,1.55547296,4520.5,4520.0,0.414]
[1758079954645,0.78359721,4520.1,4520.0,0.414]
[1758079954842,1.00759721,4520.1,4520.0,0.414]
[1758079955340,41.80759721,4520.1,4520.0,0.414]
[1758079956845,42.35501147,4520.1,4520.0,0.414]
[1758079958755,42.35501147,4520.1,4519.8,0.0221]
[1758079959055,0.54702813,4520.0,4519.9,0.2935]
[1758079959454,1.55462534,4520.0,4519.9,0.2935]
[1758079961356,1.55462534,4520.0,4519.8,0.0221]
[1758079961555,0.54702813,4519.9,4519.8,0.0221]
[1758079961855,0.54702813,4519.9,4519.6,0.2935]
[1758079962056,3.99139721,4519.7,4519.6,0.2935]
[1758079963054,4.53770986,4519.7,4519.6,0.2935]
[1758079963253,3.99139721,4519.7,4519.6,0.2935]
[1758079964156,3.99139721,4519.7,4519.6,0.5061]
[1758079964349,4.21539721,4519.7,4519.6,0.7126]
[1758079964555,3.4318,4519.7,4519.6,0.7126]
[1758079965964,3.2078,4519.7,4519.6,0.7126]
[1758079966261,3.4318,4519.7,4519.6,0.7126]
[1758079966861,3.2078,4519.7,4519.6,0.7126]
[1758079967158,3.4318,4519.7,4519.6,0.7126]
[1758079969460,3.2078,4519.7,4519.6,0.7126]
[1758079969658,3.4318,4519.7,4519.6,0.7126]
[1758079970467,3.2078,4519.7,4519.6,5.65258784]
[1758079970655,3.2078,4520.2,4520.1,0.7126]
[1758079970861,3.4318,4520.2,4520.1,0.7126]
[1758079971062,44.2318,4520.2,4520.1,0.5061]
[1758079971460,3.4318,4520.2,4520.1,0.5061]
[1758079971664,3.4318,4520.2,4520.1,0.2935]
[1758079971956,44.2318,4520.2,4520.0,0.1261]
[1758079972260,45.17178784,4520.2,4520.1,0.2935]
[1758079977763,41.96398784,4520.2,4520.1,0.2935]
[1758079977959,45.17178784,4520.2,4520.1,0.2935]
[1758079978468,45.71867839,4520.2,4520.1,0.4965]
[1758079978672,44.77869055,4520.2,4520.1,0.4965]
[1758079978971,44.2318,4520.2,4520.1,0.4965]
[1758079979270,44.77881813,4520.2,4520.1,0.4965]
[1758079979766,44.77881813,4520.2,4520.0,0.1261]
[1758079979966,44.2318,4520.2,4520.0,0.4289]
[1758079980273,44.2318,4520.2,4520.0,0.1261]
[1758079980474,44.2318,4520.2,4520.1,0.3028]
[1758079980671,44.77890506,4520.2,4520.1,0.3028]
[1758079982473,45.7188929,4520.2,4520.1,0.3028]
[1758079985376,45.7188929,4520.2,4519.9,0.0221]
[1758079985377,49.9401229,4520.2,4519.9,0.0221]
[1758079985680,4.76834507,4520.1,4519.0,0.4289]
[1758079985974,0.93998784,4519.2,4519.1,0.3028]
[1758079986174,1.7110929,4519.2,4519.1,0.3028]
[1758079986571,1.16398784,4519.2,4519.1,0.3028]
[1758079986773,1.71019202,4519.2,4519.1,0.3028]
[1758079989078,0.77020418,4519.2,4519.1,0.3028]
[1758079991176,0.54620418,4519.2,4519.1,0.3028]
[1758079991373,3.2078,4520.1,4520.0,0.1182]
[1758079991568,3.75359619,4520.1,4520.0,0.6202]
[1758079991774,3.97759619,4520.1,4520.0,0.8344]
[1758079992371,3.75359619,4520.1,4520.0,0.8344]
[1758079992680,3.97759619,4520.1,4520.0,0.8344]
[1758079993380,3.97759619,4520.1,4520.0,0.421]
[1758079993783,3.97759619,4520.1,4520.0,0.6202]
[1758079994183,3.97759619,4520.1,4520.0,0.8344]
[1758079995382,3.75359619,4520.1,4520.0,0.8344]
[1758079995679,3.97759619,4520.1,4520.0,0.8344]
[1758080000385,3.75359619,4520.1,4520.0,0.8344]
[1758080000683,3.97759619,4520.1,4520.0,0.8344]
[1758080002387,3.97759619,4520.1,4520.0,0.421]
[1758080002687,3.97759619,4520.1,4519.6,0.3028]
[1758080002881,0.93998784,4519.9,4519.7,0.3028]
[1758080003086,0.76979619,4519.8,4519.7,0.3028]
[1758080003494,0.76979619,4519.8,4519.7,0.502]
[1758080004785,0.76979619,4519.8,4519.5,0.1182]
[1758080005098,3.2078,4519.6,4519.5,0.1182]
[1758080005298,3.97759619,4519.6,4519.5,0.421]
[1758080005793,4.91758403,4519.6,4519.5,0.421]
[1758080007292,3.97759619,4519.6,4519.5,0.8344]
[1758080007490,0.54579619,4519.6,4519.5,0.8344]
[1758080007797,0.224,4519.6,4519.5,0.5316]
[1758080007991,0.76979619,4519.6,4519.5,0.5316]
[1758080008194,0.76979619,4519.6,4519.5,0.845]
[1758080008501,0.76979619,4519.6,4519.5,0.77436858]
[1758080009093,3.2078,4520.1,4520.0,0.1204]
[1758080009299,3.98739091,4520.1,4520.0,0.8462]
[1758080009502,3.99699091,4520.1,4520.0,0.8462]
[1758080010005,3.99699091,4520.1,4520.0,0.6432]
[1758080011003,3.77299091,4520.1,4520.0,0.6432]
[1758080011205,3.98739091,4520.1,4520.0,0.8462]
[1758080012008,3.99699091,4520.1,4520.0,0.8462]
[1758080012300,3.99699091,4520.1,4516.3,1.481]
[1758080012501,0.93998784,4517.5,4515.3,0.44293355]
[1758080012701,3.2078,4516.0,4515.5,0.1204]
[1758080013004,0.93998784,4515.6,4515.5,0.3298]
[1758080013206,1.20171845,4515.6,4515.5,0.3298]
[1758080013406,2.05743723,4515.6,4515.5,0.3298]
[1758080013800,1.11744939,4515.6,4515.5,0.3298]
[1758080014497,1.11744939,4515.6,4515.5,0.6432]
[1758080015504,41.91744939,4515.6,4515.5,0.6432]
[1758080015705,41.70910565,4515.6,4515.5,0.6432]
[1758080015906,41.93910565,4515.6,4515.5,0.6432]
[1758080016301,41.31338687,4515.6,4515.5,0.6432]
[1758080016505,41.95694107,4515.6,4515.5,0.6432]
[1758080017102,41.72694107,4515.6,4515.5,0.6432]
[1758080017306,41.95694107,4515.6,4515.5,0.8462]
[1758080017705,41.72694107,4515.6,4515.5,0.8462]
[1758080017903,41.31338687,4515.6,4515.5,0.8462]
[1758080018803,41.08338687,4515.6,4515.5,0.8462]
[1758080019010,41.31338687,4515.6,4515.5,0.8462]
[1758080019506,0.51338687,4515.6,4515.5,0.8462]
[1758080022207,1.1547282,4515.6,4515.5,0.8462]
[1758080022406,0.51338687,4515.6,4515.5,0.8462]
[1758080022710,0.28338687,4515.6,4515.5,0.8462]
[1758080022903,0.25723784,4515.6,4515.5,0.8462]
[1758080023107,0.48723784,4515.6,4515.5,0.8462]
[1758080024915,0.25723784,4515.6,4515.5,0.8462]
[1758080025110,0.48723784,4515.6,4515.5,0.8462]
[1758080026715,0.25723784,4515.6,4515.5,4.8462]